Cogmind - Beta 13 @@@ ROGUE MODE // 2024.06.13 @ 16:17:18 Player: Kinga Result: Core destroyed Performance ------------- Evolutions (4) 2000 Regions Visited (10) 2000 Robots Destroyed (85) 425 Value Destroyed (2740) 2740 Prototype IDs (18) 360 Alien Tech Used (0) 0 Bonus (800) 800 TOTAL SCORE: 8325 Bonus ------- Entered DSFs 500 Aligned with FarCom 300 Cogmind --------- Core Integrity 0/850 Matter 100/300 Energy 236/250 System Corruption 0% Temperature Critical (4938) Movement Treading (320) Ox2 Location -6/DSF Parts ------- > --- POWER (3) -------- Micro Nuclear Core Micro Nuclear Core Micro Nuclear Core > --- PROPULSION (4) --- Light Treads Armored Treads Improved Medium Treads Armored Wheel > --- UTILITY (6) ------ Improved Heat Sink Advanced Heat Sink Huge Storage Unit Advanced Targeting Computer Hardened Medium Armor Plating Hardened Medium Armor Plating > --- WEAPON (2) ------- Advanced Plasma Cannon Advanced Plasma Cannon > --- INVENTORY (25) --- Micro Nuclear Core Improved Signal Interpreter Cloak of Protection Improved Focal Shield Improved Focal Shield Hardlight Generator Authchip [Weapon] Authchip [Weapon] Dynamic Insulation System Long-range Tractor Beam Recalibrator Plasma Cannon Plasma Cannon Plasma Cannon Heavy Ion Cannon Heavy Ion Cannon Heavy Ion Cannon Advanced Plasma Cannon Advanced Plasma Cannon Advanced Plasma Cannon Advanced Plasma Cannon Guided Plasma Cannon Assault Cannon Advanced EMP Blaster Advanced EMP Blaster Peak State ------------ > --- POWER ------------ Micro Nuclear Core Micro Nuclear Core Micro Nuclear Core > --- PROPULSION ------- Light Treads Armored Treads Improved Medium Treads Armored Wheel > --- UTILITY ---------- Improved Heat Sink Improved Heat Sink Advanced Heat Sink Huge Storage Unit Hardened Medium Armor Plating Hardened Medium Armor Plating > --- WEAPON ----------- Advanced Plasma Cannon Advanced Plasma Cannon > --- INVENTORY -------- Micro Nuclear Core Improved Signal Interpreter Cloak of Protection Improved Focal Shield Hardlight Generator Dynamic Insulation System Long-range Tractor Beam Recalibrator Plasma Cannon Plasma Cannon Plasma Cannon Heavy Ion Cannon Heavy Ion Cannon Heavy Ion Cannon Heavy Ion Cannon Heavy Ion Cannon Advanced Plasma Cannon Advanced Plasma Cannon Advanced Plasma Cannon Advanced Plasma Cannon Guided Plasma Cannon Assault Cannon Advanced EMP Blaster Advanced EMP Blaster [Rating: 64] Favorites ----------- Power Nuclear Core Engine Ion Engine Power Core Nuclear Core Propulsion Improved Treads Treads Improved Treads Wheel Armored Wheel Flight Unit Improved Flight Unit Utility Improved Targeting Computer Device Heat Sink Storage Huge Storage Unit Processor Improved Targeting Computer Protection Hardened Medium Armor Plating Weapon Beam Cannon Energy Gun Medium Laser Energy Cannon Beam Cannon Ballistic Cannon Light Cannon Launcher Advanced EMP Blaster Build | -11 -10 -10 -9 -9 -9 -8 -8 -7 -6 -6 ------- Run | Yrd Mat Min Mat Min Exi Min Mat Fac Fac DSF Slots Evolved 8 | . . . 2 . . . 2 2 2 . Power 2 | . . . . . . . . 2 . . Propulsion 2 | . . . . . . . 2 . . . Utility 4 | . . . 2 . . . . . 2 . Weapon . | . . . . . . . . . . . Parts Attached 96 | 6 5 . 11 . 5 11 17 20 3 18 Power 12 | 1 . . 2 . . 2 . 4 . 3 Engine 2 | 1 . . 1 . . . . . . . Core 10 | . . . 1 . . 2 . 4 . 3 Reactor . | . . . . . . . . . . . Propulsion 21 | 2 . . 4 . . 4 3 3 1 4 Treads 15 | 2 . . 3 . . 4 3 . 1 2 Leg . | . . . . . . . . . . . Wheel 5 | . . . . . . . . 3 . 2 Hover . | . . . . . . . . . . . Flight 1 | . . . 1 . . . . . . . Utility 28 | 1 2 . 3 . 3 3 7 2 2 5 Device 11 | . 1 . . . 3 . 4 . 2 1 Storage 4 | 1 1 . 1 . . . 1 . . . Processor 5 | . . . 2 . . 2 . . . 1 Hackware . | . . . . . . . . . . . Protection 8 | . . . . . . 1 2 2 . 3 Artifact . | . . . . . . . . . . . Weapon 35 | 2 3 . 2 . 2 2 7 11 . 6 Energy Gun 4 | 2 1 . . . . . 1 . . . Energy Cannon 23 | . 1 . 2 . 2 2 5 5 . 6 Ballistic Gun . | . . . . . . . . . . . Ballistic Cannon 2 | . 1 . . . . . . 1 . . Launcher 6 | . . . . . . . 1 5 . . Special Weapon . | . . . . . . . . . . . Impact Weapon . | . . . . . . . . . . . Slashing Weapon . | . . . . . . . . . . . Piercing Weapon . | . . . . . . . . . . . Special Melee Weapon . | . . . . . . . . . . . Unidentified Prototypes 6 | . . . 1 . 3 . 2 . . . Parts Lost 26 | . . . 1 . . 7 1 8 . 9 Power 7 | . . . 1 . . 1 . 2 . 3 Propulsion 9 | . . . . . . 2 1 4 . 2 Utility 7 | . . . . . . 3 . 1 . 3 Weapon 3 | . . . . . . 1 . 1 . 1 Highest Loss Streak 8 | . . . 1 . . 7 1 4 . 8 To Critical Strikes . | . . . . . . . . . . . Average Slot Usage (%) 94 | . 92 100 96 100 99 96 98 84 91 90 Engine 1 | . 14 14 2 . . . . . . . Core 12 | . . . 8 11 11 10 9 21 20 19 Treads 20 | . 28 28 22 22 22 22 35 9 4 11 Wheel 3 | . . . . . . . . 11 20 7 Device 11 | . 6 14 11 11 17 11 9 7 20 17 Storage 9 | . 14 14 11 11 11 11 8 7 6 6 Processor 9 | . . . 19 22 15 12 13 3 . . Protection 4 | . . . . . . 7 3 7 6 12 Energy Cannon 15 | . 4 14 14 22 22 20 17 11 13 13 Ballistic Cannon 1 | . 4 14 7 . . . . . . . Naked Turns . | . . . . . . . . . . . Heaviest Build 142 | 13 33 32 94 94 102 102 112 136 138 142 Greatest Support 89 | 40 40 40 46 46 46 46 89 87 22 70 Greatest Overweight (x) 11 | . . . 2 2 2 2 1 6 6 11 Average Overweight (x) 1 | . . . . 2 2 1 1 3 6 9 Largest Inventory Capacity 25 | 8 15 15 25 25 25 25 25 25 25 25 Average Capacity 22 | 6 14 15 16 25 25 25 24 25 25 25 Most Carried 25 | 4 9 11 15 15 17 17 22 25 20 25 Average Carried 16 | 2 7 10 14 15 15 15 13 22 19 22 Final Capacity 25 | 8 15 15 25 25 25 25 25 25 25 25 Final Carried 25 | 4 9 11 15 15 16 8 22 21 19 25 Class Distribution -------------------- 94% | Mutant 5% | Scavenger-Mutant Dominant Class ---------------- Mutant | -10/Materials Mutant | -10/Mines Mutant | -9/Materials Mutant | -9/Mines Mutant | -9/Exiles Mutant | -8/Mines Mutant | -8/Materials Mutant | -7/Factory Scavenger-Mutant | -6/Factory Scavenger-Mutant | -6/DSF Resources | -11 -10 -10 -9 -9 -9 -8 -8 -7 -6 -6 ----------- Run | Yrd Mat Min Mat Min Exi Min Mat Fac Fac DSF Matter Collected 1374 | 227 43 80 219 . . 197 170 123 . 315 Remotely . | . . . . . . . . . . . Salvage Created 3308 | . 43 71 854 . . 227 622 925 . 566 Parts 197 | . 9 12 60 . . 10 31 44 . 31 Haulers Intercepted 6 | . . . 3 . . . 2 1 . . Recyclers Shooed . | . . . . . . . . . . . Parts Field Recycled . | . . . . . . . . . . . Retrieved Matter . | . . . . . . . . . . . Parts Self-Destructed . | . . . . . . . . . . . Prevented . | . . . . . . . . . . . Kills | -11 -10 -10 -9 -9 -9 -8 -8 -7 -6 -6 ------- Run | Yrd Mat Min Mat Min Exi Min Mat Fac Fac DSF Combat Hostiles Destroyed 67 | . 3 6 16 . . 7 12 14 . 9 Guns 3 | . 3 . . . . . . . . . Cannons 59 | . . 6 16 . . 7 11 10 . 9 AOE 1 | . . . . . . . . 1 . . Classes Destroyed 13 | . 1 1 6 . . . . 3 . 2 Worker 3 | . . . 2 . . . . 1 . . Builder 2 | . . 1 . . . . 1 . . . Hauler 6 | . . . 3 . . . 2 1 . . Recycler 1 | . . . . . . . . 1 . . Mechanic 1 | . . . . . . . . 1 . . Watcher 5 | . . . 2 . . . 1 2 . . Swarmer 16 | . 3 6 . . . 4 3 . . . Grunt 31 | . . . 10 . . 3 7 6 . 5 Duelist 2 | . . . 1 . . . . . . 1 Sentry 11 | . . . 5 . . . 2 3 . 1 Specialist 1 | . . . . . . . . . . 1 Programmer 5 | . . . . . . . . 5 . . Heavy 1 | . . . . . . . . . . 1 Best Kill Streak 4 | . 3 3 4 . . 4 3 4 . 3 Combat Bots Only 4 | . 3 3 4 . . 4 3 2 . 3 Max Kills in Single Turn 2 | . 1 2 2 . . 1 1 2 . 1 Gunslinging . | . . . . . . . . . . . Exploded 1 | . . . . . . . . 1 . . Melee . | . . . . . . . . . . . Uniques/NPCs Destroyed . | . . . . . . . . . . . Combat | -11 -10 -10 -9 -9 -9 -8 -8 -7 -6 -6 -------- Run | Yrd Mat Min Mat Min Exi Min Mat Fac Fac DSF Hostile Shots Fired 713 | . 24 28 67 . . 82 89 207 . 216 Missed 235 | . 4 2 23 . . 18 24 65 . 99 Damage Taken 6713 | . 171 206 641 . . 956 816 1515 . 2408 Core 1498 | . 23 37 115 . . 253 77 136 . 857 Absorbed by Shields 164 | . . . . . . . 164 . . . Regen/Repaired (Parts) 367 | . . . . . . . 367 . . . Core Remaining (%) 70 | 100 . 76 . . . 8 86 80 . . Volleys Fired 221 | . 5 10 55 . . 25 37 52 . 37 Largest 2 | . 2 2 2 . . 2 2 2 . 2 Hottest 196 | . 100 95 120 . . 120 130 130 . 196 Shots Fired 431 | . 10 20 110 . . 45 73 99 . 74 Gun 10 | . 10 . . . . . . . . . Cannon 414 | . . 20 110 . . 45 73 92 . 74 Launcher 7 | . . . . . . . . 7 . . Special . | . . . . . . . . . . . Kinetic 46 | . . 10 29 . . . . 7 . . Thermal 378 | . 10 10 81 . . 45 73 85 . 74 Explosive . | . . . . . . . . . . . Electromagnetic 7 | . . . . . . . . 7 . . Robot Hit Streak 17 | . 2 4 17 . . 11 12 10 . 10 Robot Miss Streak 5 | . 2 5 4 . . 2 3 4 . 4 Penetration Max . | . . . . . . . . . . . Secondary Targets . | . . . . . . . . . . . Shots Hit Robots 287 | . 3 8 78 . . 31 51 68 . 48 Core Hits 112 | . 3 6 31 . . 11 20 23 . 18 Critical Kills 2 | . . . . . . . 1 1 . . Critical Parts Destroyed . | . . . . . . . . . . . Critical Strikes 3 | . . . 1 . . . 1 1 . . Meltdown 2 | . . . . . . . 1 1 . . Blast 1 | . . . 1 . . . . . . . Melee Attacks . | . . . . . . . . . . . Impact . | . . . . . . . . . . . Slashing . | . . . . . . . . . . . Piercing . | . . . . . . . . . . . Sneak Attacks . | . . . . . . . . . . . Combat Hostiles . | . . . . . . . . . . . Follow-up Attacks . | . . . . . . . . . . . Damage Inflicted 7148 | . 37 176 1486 . . 559 1291 2178 . 1421 Guns 37 | . 37 . . . . . . . . . Cannons 6662 | . . 172 1483 . . 559 1287 1740 . 1421 Explosions 405 | . . . . . . . . 405 . . Melee . | . . . . . . . . . . . Ramming 44 | . . 4 3 . . . 4 33 . . Kinetic 552 | . . 66 344 . . . . 142 . . Thermal 6147 | . 37 106 1139 . . 559 1287 1598 . 1421 Explosive . | . . . . . . . . . . . Electromagnetic 405 | . . . . . . . . 405 . . Impact . | . . . . . . . . . . . Slashing . | . . . . . . . . . . . Piercing . | . . . . . . . . . . . Highest Corruption 6 | . . . . . . . . 6 . . Average Corruption 3 | . . . . . . . . 3 . . Corruption Purged . | . . . . . . . . . . . Corruption Blocked . | . . . . . . . . . . . Effects 16 | . . . . . . . . 16 . . Message Errors 4 | . . . . . . . . 4 . . Matter Fused 2 | . . . . . . . . 2 . . Heat Flow Errors 2 | . . . . . . . . 2 . . Energy Discharges 3 | . . . . . . . . 3 . . Data Loss (minor) 1 | . . . . . . . . 1 . . Data Loss (major) 2 | . . . . . . . . 2 . . Misfires 2 | . . . . . . . . 2 . . Overload Shots . | . . . . . . . . . . . Overflow Damage 116 | . . . . . . 7 16 87 . 6 Projectiles 108 | . . . . . . 7 16 79 . 6 Explosions 8 | . . . . . . . . 8 . . Melee . | . . . . . . . . . . . Knockbacks 5 | . . . 3 . . . . 2 . . Impact 1 | . . . . . . . . 1 . . Kinetic 4 | . . . 3 . . . . 1 . . Secondary . | . . . . . . . . . . . Self-Inflicted Damage 14 | . . . . . . . . 14 . . Shots 1 | . . . . . . . . 1 . . Rammed 4 | . . . 2 . . . 1 1 . . Targets Rammed 7 | . . 1 2 . . . 2 2 . . Kicked . | . . . . . . . . . . . Crushed 3 | . . 1 . . . . 1 1 . . Highest Temperature 4938 | . 117 15 258 . . 698 323 408 . 4938 Average Temperature 290 | . 43 8 61 . . 265 115 139 . 1022 Received Heat Transfer 2053 | . . . 291 . . 423 463 417 . 459 Effects 95 | . . . . . . 26 2 4 . 63 Shutdowns 27 | . . . . . . 4 . 1 . 22 Energy Bleed 12 | . . . . . . 3 . 1 . 8 Interference 7 | . . . . . . 1 2 1 . 3 Matter Decay 7 | . . . . . . 1 . . . 6 Short Circuit 9 | . . . . . . 5 . 1 . 3 Damage (minor) 3 | . . . . . . 1 . . . 2 Damage (major) 22 | . . . . . . 9 . . . 13 Damage (core) 8 | . . . . . . 2 . . . 6 Siege Activations . | . . . . . . . . . . . Robots Corrupted 1 | . . . . . . . . 1 . . Combat Hostiles 1 | . . . . . . . . 1 . . Parts Fried 1 | . . . . . . . . 1 . . Impact Corruptions . | . . . . . . . . . . . Robots Melted 3 | . . . . . . . 1 2 . . Combat Hostiles 3 | . . . . . . . 1 2 . . Parts Melted 17 | . . . 6 . . 2 5 4 . . Heat Transferred 10492 | . 111 222 2405 . . 1184 1924 2109 . 2537 Parts Sabotaged . | . . . . . . . . . . . Parts Stolen . | . . . . . . . . . . . Parts Stripped . | . . . . . . . . . . . Power Chain Reactions 1 | . . . . . . . . 1 . . Alert | -11 -10 -10 -9 -9 -9 -8 -8 -7 -6 -6 ------- Run | Yrd Mat Min Mat Min Exi Min Mat Fac Fac DSF Peak Influence 288 | . 130 195 288 112 . 105 152 145 40 139 Initial 112 | . . 50 . 112 . . . 46 40 28 Average 74 | . 88 134 116 112 . 36 60 66 40 100 Maximum Alert Level 1 | . . . 1 . . . . . . . Low Security (%) 97 | 100 100 100 75 100 . 100 100 100 100 100 Level 1 2 | . . . 24 . . . . . . . Level 2 . | . . . . . . . . . . . Level 3 . | . . . . . . . . . . . Level 4 . | . . . . . . . . . . . Level 5 . | . . . . . . . . . . . High Security . | . . . . . . . . . . . Max Security . | . . . . . . . . . . . Sterilizations 1 | . . . . . . . . . . 1 Squads Dispatched 12 | . . . . . . . 3 7 . 2 Investigation 4 | . . . . . . . 3 1 . . Extermination 4 | . . . . . . . . 4 . . Reinforcement 4 | . . . . . . . . 2 . 2 Assault . | . . . . . . . . . . . Garrison . | . . . . . . . . . . . Intercept . | . . . . . . . . . . . Searches Triggered . | . . . . . . . . . . . Construction Impeded 1 | . . . . . . . . 1 . . Haulers Reinforced . | . . . . . . . . . . . Active Scanning Responses . | . . . . . . . . . . . Cargo Convoy Interrupts . | . . . . . . . . . . . Stealth | -11 -10 -10 -9 -9 -9 -8 -8 -7 -6 -6 --------- Run | Yrd Mat Min Mat Min Exi Min Mat Fac Fac DSF Distress Signals 6 | . . . 3 . . . . 3 . . Communications Jammed . | . . . . . . . . . . . Distress Signals . | . . . . . . . . . . . Times Spotted 94 | . 7 5 26 . . 7 16 25 . 8 Peak Tracking Total 5 | . 3 3 4 . . 3 4 3 . 5 Tactical Retreats 3 | . 1 . 1 . . 1 . . . . Traps | -11 -10 -10 -9 -9 -9 -8 -8 -7 -6 -6 ------- Run | Yrd Mat Min Mat Min Exi Min Mat Fac Fac DSF Traps Triggered 5 | . . . 1 . . . 2 1 . 1 Indirectly . | . . . . . . . . . . . Trap Hack Attempts . | . . . . . . . . . . . Triggered . | . . . . . . . . . . . Disarmed . | . . . . . . . . . . . Reprogrammed . | . . . . . . . . . . . Reused . | . . . . . . . . . . . Traps Extracted . | . . . . . . . . . . . Installed . | . . . . . . . . . . . Triggered . | . . . . . . . . . . . Machines | -11 -10 -10 -9 -9 -9 -8 -8 -7 -6 -6 ---------- Run | Yrd Mat Min Mat Min Exi Min Mat Fac Fac DSF Machines Disabled 2 | . . . 1 . . . 1 . . . Max in Single Turn 1 | . . . 1 . . . 1 . . . Machines Repaired . | . . . . . . . . . . . Machines Dismantled . | . . . . . . . . . . . Machines Sabotaged . | . . . . . . . . . . . Overloaded Fab Kills . | . . . . . . . . . . . Hacking | -11 -10 -10 -9 -9 -9 -8 -8 -7 -6 -6 --------- Run | Yrd Mat Min Mat Min Exi Min Mat Fac Fac DSF Machines Accessed 18 | . 1 . 5 . 2 . 6 3 1 . Terminals 14 | . 1 . 5 . . . 5 2 1 . Fabricators 1 | . . . . . . . . 1 . . Repair Stations 1 | . . . . . . . 1 . . . Recycling Units . | . . . . . . . . . . . Scanalyzers . | . . . . . . . . . . . Garrison Access . | . . . . . . . . . . . Total Hacks 46 | . 2 . 12 . 5 . 18 7 2 . Successful 25 | . 2 . 7 . 5 . 8 2 1 . Failed 20 | . . . 4 . . . 10 5 1 . Catastrophic 4 | . . . 2 . . . 1 1 . . Database Lockouts 1 | . . . 1 . . . . . . . Manual 18 | . 1 . 8 . 1 . 7 1 . . Terminals 36 | . 2 . 12 . . . 15 5 2 . Fabricators 2 | . . . . . . . . 2 . . Repair Stations 3 | . . . . . . . 3 . . . Recycling Units . | . . . . . . . . . . . Scanalyzers . | . . . . . . . . . . . Garrison Access . | . . . . . . . . . . . Terminal Hacks 23 | . 2 . 7 . 5 . 6 2 1 . Record 5 | . . . . . 5 . . . . . Part Schematic 2 | . . . 1 . . . . 1 . . Prototype ID Bank 9 | . 1 . 4 . . . 3 1 . . Open DSF 1 | . . . . . . . . . 1 . Alert Level 1 | . 1 . . . . . . . . . Transport Status 1 | . . . . . . . 1 . . . Recall Investigation 1 | . . . . . . . 1 . . . Hauler Manifests 1 | . . . 1 . . . . . . . Registered Components 2 | . . . 1 . . . 1 . . . Fabricator Hacks . | . . . . . . . . . . . Repair Station Hacks 2 | . . . . . . . 2 . . . Scan Component 1 | . . . . . . . 1 . . . Repair 1 | . . . . . . . 1 . . . Recycling Unit Hacks . | . . . . . . . . . . . Scanalyzer . | . . . . . . . . . . . Garrison Access Hacks . | . . . . . . . . . . . Unauthorized Hacks . | . . . . . . . . . . . Terminals . | . . . . . . . . . . . Fabricators . | . . . . . . . . . . . Repair Stations . | . . . . . . . . . . . Recycling Units . | . . . . . . . . . . . Scanalyzers . | . . . . . . . . . . . Garrison Access . | . . . . . . . . . . . Data Cores Recovered . | . . . . . . . . . . . Used . | . . . . . . . . . . . Hacking Detections 13 | . 1 . 5 . . . 5 2 . . Full Trace Events 3 | . . . 1 . . . 1 1 . . Feedback Events . | . . . . . . . . . . . Feedback Blocked . | . . . . . . . . . . . Robot Schematics Acquired . | . . . . . . . . . . . Robots Built . | . . . . . . . . . . . Authchips . | . . . . . . . . . . . Time . | . . . . . . . . . . . Total Robot Build Rating . | . . . . . . . . . . . Part Schematics Acquired 2 | . . . 1 . . . . 1 . . Parts Built . | . . . . . . . . . . . Authchips . | . . . . . . . . . . . Time . | . . . . . . . . . . . Total Part Build Rating . | . . . . . . . . . . . Parts Repaired 1 | . . . . . . . 1 . . . Time 26 | . . . . . . . 26 . . . Parts Recycled . | . . . . . . . . . . . Recycled Matter . | . . . . . . . . . . . Retrieved Matter . | . . . . . . . . . . . Retrieved Components . | . . . . . . . . . . . Parts Scanalyzed . | . . . . . . . . . . . Part Schematics Acquired . | . . . . . . . . . . . Parts Damaged . | . . . . . . . . . . . Bothacking | -11 -10 -10 -9 -9 -9 -8 -8 -7 -6 -6 ------------ Run | Yrd Mat Min Mat Min Exi Min Mat Fac Fac DSF Used RIF Installer . | . . . . . . . . . . . Robots Hacked . | . . . . . . . . . . . Non-combat . | . . . . . . . . . . . Combat . | . . . . . . . . . . . Robot Hacks Applied . | . . . . . . . . . . . Relay Couplers Released . | . . . . . . . . . . . Fabnet Peak Effective % . | . . . . . . . . . . . Robots Rewired . | . . . . . . . . . . . Allies Hacked . | . . . . . . . . . . . Hacks Repelled . | . . . . . . . . . . . Allies | -11 -10 -10 -9 -9 -9 -8 -8 -7 -6 -6 -------- Run | Yrd Mat Min Mat Min Exi Min Mat Fac Fac DSF Total Allies . | . . . . . . . . . . . Largest Group . | . . . . . . . . . . . Highest-Rated Group . | . . . . . . . . . . . Highest-Rated Ally . | . . . . . . . . . . . Total Orders . | . . . . . . . . . . . Ally Attacks . | . . . . . . . . . . . Total Damage . | . . . . . . . . . . . Kills . | . . . . . . . . . . . Allies Corrupted . | . . . . . . . . . . . Allies Melted . | . . . . . . . . . . . Intel | -11 -10 -10 -9 -9 -9 -8 -8 -7 -6 -6 ------- Run | Yrd Mat Min Mat Min Exi Min Mat Fac Fac DSF Robot Analysis Total . | . . . . . . . . . . . Derelict Logs Recovered 2 | . . 1 . 1 . . . . . . Drone Launches . | . . . . . . . . . . . Drone Recoveries . | . . . . . . . . . . . Exploration | -11 -10 -10 -9 -9 -9 -8 -8 -7 -6 -6 ------------- Run | Yrd Mat Min Mat Min Exi Min Mat Fac Fac DSF Turns Passed 7150 | 80 303 507 699 224 864 1227 1029 1663 130 424 Spaces Moved 2548 | 46 169 296 290 71 268 357 329 536 73 113 Core 5 | 5 . . . . . . . . . . Treads 2053 | 41 169 296 290 71 268 357 329 223 . 9 Legs . | . . . . . . . . . . . Wheels 490 | . . . . . . . . 313 73 104 Hover . | . . . . . . . . . . . Flight . | . . . . . . . . . . . Fastest Speed 50 | 50 160 160 160 320 320 232 228 150 175 160 Average Speed 225 | 148 160 160 171 320 320 310 229 203 175 245 Slowest Speed 480 | 160 160 160 320 320 320 320 232 312 175 480 Overloaded Moves . | . . . . . . . . . . . Propulsion Burnouts . | . . . . . . . . . . . Robots Hopped . | . . . . . . . . . . . Cave-ins Triggered . | . . . . . . . . . . . Exploration Rate (%) 41 | 4 26 60 36 35 64 85 32 20 2 88 Regions Visited 10 Branch Regions 4 Pre-discovered Areas 1 | . . . . . 1 . . . . . Known Exits Taken 2 | . . . . . . 1 . . 1 . Unknown Exits Taken 8 | 1 1 1 1 1 1 . 1 1 . . Scrap Searched 2 | . . 1 . . . 1 . . . . Spaces Dug . | . . . . . . . . . . . Terrain Destroyed 16 | . . . . . . . 9 6 . 1 Melee . | . . . . . . . . . . . Projectile 16 | . . . . . . . 9 6 . 1 AOE . | . . . . . . . . . . . Terrain Rammed . | . . . . . . . . . . . Walls Destroyed . | . . . . . . . . . . . Machines Disabled . | . . . . . . . . . . . Actions | -11 -10 -10 -9 -9 -9 -8 -8 -7 -6 -6 --------- Run | Yrd Mat Min Mat Min Exi Min Mat Fac Fac DSF Total 3525 | 55 190 309 393 70 276 435 528 1006 75 188 Wait 544 | . 7 1 . . . 36 111 387 . 2 Move 2538 | 45 168 295 289 70 267 356 328 535 72 113 Hop . | . . . . . . . . . . . Pick Up 72 | 4 3 2 17 . . 2 25 7 . 12 Fast Attach 34 | 6 3 . 6 . 3 . 8 2 1 5 Attach 37 | . . . 1 . 1 10 5 8 2 10 Detach 11 | . 2 . . . 2 . 3 1 . 3 Swap 25 | . 2 . 4 . 1 1 4 10 . 3 Drop 36 | . . . 19 . 2 5 5 2 . 3 Fire 221 | . 5 10 55 . . 25 37 52 . 37 Melee . | . . . . . . . . . . . Ram . | . . . . . . . . . . . Kick . | . . . . . . . . . . . Crush 7 | . . 1 2 . . . 2 2 . . Escape Stasis . | . . . . . . . . . . . Rewire . | . . . . . . . . . . . Trap . | . . . . . . . . . . . Miscellaneous . | . . . . . . . . . . . Route ------- -11/Scrapyard -10/Materials -10/Mines -9/Materials (discovered 2 exits: Mat / [*Min]) -9/Mines (discovered 2 exits: *Mat / *Exi) -9/Exiles -8/Mines -8/Materials -7/Factory -6/Factory -6/DSF (discovered 1 exit: [*Fac]) History --------- Turn | Location | Event 9 | -11/Scrapyard | Discovered new exit (range 15) 81 | -11/Scrapyard | Entered Materials 219 | -10/Materials | Discovered new exit (range 16) 302 | -10/Materials | Build established: Mutant 384 | -10/Materials | Entered Mines 523 | -10/Mines | Learned 4 Materials zone layouts 877 | -10/Mines | Discovered new exit (range 9) 891 | -10/Mines | Entered Materials 891 | -9/Materials | Evolved 2 slots: Utility x2 892 | -9/Materials | Identified exit to Materials 1440 | -9/Materials | Discovered new exit (range 14) 1571 | -9/Materials | Central database locked down 1590 | -9/Materials | Entered Mines 1757 | -9/Mines | Discovered exit to Materials (range 9) 1773 | -9/Mines | Learned 2 Materials zone layouts 1802 | -9/Mines | Deemed a non-threat by the Exiles lab entrance 1802 | -9/Mines | Discovered new exit (range 5) 1814 | -9/Mines | Entered Exiles 1894 | -9/Exiles | Met 8R-AWN 1946 | -9/Exiles | Met EX-HEX 2042 | -9/Exiles | Met EX-BIN 2086 | -9/Exiles | Aligned with FarCom system 2090 | -9/Exiles | Given EX-Vault access code 2163 | -9/Exiles | Opened EX-Vault 2180 | -9/Exiles | Found Prototype Device 2180 | -9/Exiles | Identified Cloak of Protection 2188 | -9/Exiles | Found Prototype Device 2188 | -9/Exiles | Identified Chronowheel 2188 | -9/Exiles | Activated Chronowheel 2194 | -9/Exiles | Found Prototype Energy Cannon 2194 | -9/Exiles | Identified Gui. Plasma Cannon 2332 | -9/Exiles | Warned to stay clear of 0b10 Research branches 2438 | -9/Exiles | Met EX-DEC 2451 | -9/Exiles | Learned location of Zion (-7) 2649 | -9/Exiles | Discovered new exit (range 11) 2678 | -9/Exiles | Stole two prototypes: Cloak of Protection, Gui. Plasma Cannon 2678 | -9/Exiles | Entered Mines 3766 | -8/Mines | Core integrity fell below 50% 3794 | -8/Mines | Core integrity fell below 20% 3816 | -8/Mines | Lost 7 parts (1p2n3u1w) 3841 | -8/Mines | Discovered exit to Materials (range 12) 3905 | -8/Mines | Entered Materials 3905 | -8/Materials | Evolved 2 slots: Propulsion x2 4242 | -8/Materials | Repaired Huge Storage Unit 4836 | -8/Materials | Discovered new exit (range 7) 4934 | -8/Materials | Entered Factory 4934 | -7/Factory | Evolved 2 slots: Power x2 4936 | -7/Factory | FarCom data flow suspended 5650 | -7/Factory | Lost 4 parts (1p1n1u1w) 6525 | -7/Factory | Discovered new exit (range 16) 6597 | -7/Factory | Entered another Factory area 6597 | -6/Factory | Evolved 2 slots: Utility x2 6725 | -6/Factory | Identified exit to DSF 6727 | -6/Factory | Entered DSF 6749 | -6/DSF | Additional patrols routed to DSF 6869 | -6/DSF | Lost 8 parts (3p2n2u1w) 6934 | -6/DSF | Sterilization system engaged 6954 | -6/DSF | Ambient heat levels rising (+10) 6969 | -6/DSF | Ambient heat levels rising (+10) 6984 | -6/DSF | Ambient heat levels rising (+10) 6999 | -6/DSF | Ambient heat levels rising (+10) 7014 | -6/DSF | Ambient heat levels rising (+10) 7029 | -6/DSF | Ambient heat levels rising (+10) 7044 | -6/DSF | Ambient heat levels rising (+10) 7059 | -6/DSF | Ambient heat levels rising (+10) 7074 | -6/DSF | Ambient heat levels rising (+10) 7089 | -6/DSF | Ambient heat levels rising (+10) 7104 | -6/DSF | Ambient heat levels rising (+10) 7109 | -6/DSF | Core integrity fell below 50% 7114 | -6/DSF | Discovered new exit (range 15) 7119 | -6/DSF | Ambient heat levels rising (+10) 7123 | -6/DSF | Core integrity fell below 20% 7134 | -6/DSF | Ambient heat levels rising (+10) 7149 | -6/DSF | Ambient heat levels rising (+10) 7152 | -6/DSF | Core destroyed Last Messages --------------- 07133_ Power failure, Mic. Nuclear Core shutdown. 07133_ Arm. Wheel broken. 07133_ Overheating: Short circuit. 07133_ X-72 Disruptor heat damages Insulated Plating. 07134_ ALERT: Ambient heat levels +10. 07135_ Power failure, Mic. Nuclear Core shutdown. 07137_ Arm. Treads broken. 07137_ Overheating: Short circuit. 07138_ X-72 Disruptor heat damages Broken Imp. VSS Leg, Imp. Arc Projector, Mic. Fission Core, Insulated Plating. 07139_ X-72 Disruptor heat damages core (-8). 07140_ X-72 Disruptor heat damages core (-16). 07141_ X-72 Disruptor heat damages core (-9). 07143_ Power failure, Mic. Nuclear Core shutdown. 07145_ Overheating: Energy bleed (-57). 07147_ Power failure, Mic. Nuclear Core shutdown. 07147_ Overheating: Matter decay (-33). 07149_ ALERT: Ambient heat levels +10. 07152_ Power failure, Mic. Nuclear Core shutdown. 07152_ Overheating: Core damaged (-110). Map ----- +----------------------------------------------------+ | | | | | | | | | | | | | | | | | | | | | | | | | | | | | | | | | ???????????????????????????????????? | | ???????????????????????????????????? | | ???????????????????????????????????? | | ???????????????????????????????????? | | ?????????""????????????????????????? | | ?????????#"????????????????????????? | | ??????####"##???????#########??????? | | ??????#"""""######### //######## | | ??????#"""""##!!#! !# //#!!!#!!# | | ??????#""< @ ! | | ????""""" | | ????###"" %##!!# ### ### #!!# | | ??????### ###!!# ### ### #!!# | | ????????# ??########** ######## | | ???????#! ?????????#** #??????# | | ???????#! ?????????#** #??????# | | ???????## ?????????### ^###??????# | | ????????! ?????????#!! ^ !!#??????# | | ????????! ??????????#!! !!#??????# | | ????????! ???????????!! !!???????# | | ??????### ??###?####### ########## | | ??????# ??# #!!!### ###|||# | | ??????# ## #!!!#"% %##|||# | | ??????# | | ??????# % =! | | ??????# [%*!![]] | | ??????# ##!!!#!! ## %*[%## !!#/// | | ???????? ##???#!! ###!! ### !!#/// | | ????????# #????#######] ########## | | ????????[ [????????#!!!** #??????? | | ????????[ [????????#!!%=!= #??????? | | ????????[ [????????#!!!=*%=#??????? | | ???????## ##???????#"" ###??????? | | ???????#] [????????# //#??????? | +----------------------------------------------------+ Best States ------------- Heat Dissipation 84 Energy Generation 35 Energy Capacity 440 Matter Stores 300 Matter Capacity 300 Sight Range 16 Terrain Scan Density 10 Armor Coverage 675 Resistance: EM 15 Evasion (%) 40 Targeting Accuracy 12 Recoil Reduction 4 Authchip Count 2 Item Schematics ----------------- Beam Cannon | -9/Materials | Hacked Imp. Cooling System | -7/Factory | Hacked Robot Schematics ------------------ None Fabricated ------------ Nothing Alien Tech Used ----------------- None Achievements -------------- None Challenges ------------ None Game ------ Seed RocketSpikedPlating Manual? 0 Play Time 00:41:08 Cumulative 58.2 hours Start 2024.06.13 @ 15:34:36 End 2024.06.13 @ 16:17:18 Sessions 1 Manual Loads 0 Difficulty Rogue Special Mode None Game No. 75 Rogue 73 Adventurer 0 Explorer 2 Win Type - Total 4 Types 3/0/0/1/0/0/0/0/0 Lore% 31 Gallery% 56 Achievement% 46 Wizard Run 0 Options --------- Layout 0 ASCII 0 Keyboard 0 Movement Numpad Keybinds 0 Fullscreen 2 Font 18/SmallcapsGlow Map View 76x50 Zoom Use 0% Tactical HUD 1 Map Filters NONE Filters NONE Steam 1 RUN: f54131b3-88a9-4fdb-8d0d-f3a645f61d91